bitfinex/quotes_BTCUSD_20250313
["timestamp","ask_amount","ask_price","bid_price","bid_amount"]
[1741857301068,0.0001695,83324.0,83323.0,1.76924319]
[1741857301238,0.0001695,83324.0,83323.0,1.76424319]
[1741857301395,0.0001695,83324.0,83323.0,1.75824319]
[1741857301603,0.0001695,83324.0,83323.0,1.76424319]
[1741857301821,0.0001695,83324.0,83323.0,1.77024319]
[1741857303295,0.0001695,83324.0,83323.0,1.75824319]
[1741857303700,0.0001695,83324.0,83323.0,1.76424319]
[1741857303909,0.0001695,83324.0,83323.0,1.75824319]
[1741857304344,0.0001695,83324.0,83323.0,1.76424319]
[1741857304691,0.0001695,83324.0,83323.0,1.77024319]
[1741857305098,6.8e-07,83328.0,83327.0,0.252018]
[1741857305497,0.0001694,83349.0,83348.0,0.251954]
[1741857305713,0.0001694,83349.0,83348.0,0.52341619]
[1741857305927,0.0001694,83349.0,83348.0,1.65152]
[1741857306139,0.0121664,83349.0,83348.0,1.65152]
[1741857306365,0.2521204,83349.0,83348.0,0.15152]
[1741857307657,0.011998,83342.0,83336.0,0.25199]
[1741857307828,0.251973,83342.0,83337.0,0.15148]
[1741857308053,0.251985,83338.0,83337.0,0.15148]
[1741857308265,0.251985,83338.0,83319.0,0.80772]
[1741857308266,0.011999,83338.0,83329.0,0.02355318]
[1741857308605,0.239958,83348.0,83343.0,0.011998]
[1741857308755,0.0751,83352.0,83348.0,0.011997]
[1741857309080,0.01879316,83347.0,83346.0,0.011998]
[1741857309298,0.01879316,83347.0,83346.0,0.251959]
[1741857310585,0.01879316,83347.0,83345.0,0.251962]
[1741857311005,0.01879316,83347.0,83346.0,0.003]
[1741857311180,0.01879316,83347.0,83346.0,0.006]
[1741857311582,0.01879316,83347.0,83346.0,0.017998]
[1741857311780,0.01879316,83347.0,83346.0,0.011998]
[1741857312945,0.01879316,83347.0,83346.0,0.014998]
[1741857313944,0.01879316,83347.0,83346.0,0.017998]
[1741857314991,0.01879316,83347.0,83346.0,1.51919776]
[1741857315196,0.0121642,83368.0,83348.0,0.011997]
[1741857315400,0.01118047,83359.0,83348.0,0.13193919]
[1741857315555,0.251903,83366.0,83348.0,0.13193919]
[1741857315786,0.251903,83366.0,83348.0,1.63193919]
[1741857316006,0.2400744,83367.0,83348.0,1.63193919]
[1741857316330,0.01108038,83361.0,83348.0,1.63193919]
[1741857317603,0.01108038,83361.0,83348.0,1.63693919]
[1741857317804,0.0001694,83367.0,83363.0,0.251908]
[1741857318005,0.00029351,83367.0,83362.0,0.251911]
[1741857318197,0.011995,83362.0,83356.0,0.011996]
[1741857318430,0.239912,83364.0,83359.0,0.251919]
[1741857318737,0.239912,83364.0,83353.0,0.011997]
[1741857318738,0.251926,83358.0,83353.0,0.011997]
[1741857318953,0.239954,83350.0,83348.0,1.505]
[1741857319152,0.239954,83350.0,83348.0,0.005]
[1741857319404,0.011997,83349.0,83348.0,0.005]
[1741857319671,0.251936,83355.0,83346.0,0.1514]
[1741857319809,0.011996,83355.0,83351.0,0.239948]
[1741857319999,0.01879096,83353.0,83351.0,0.239948]
[1741857320227,0.01879096,83353.0,83347.0,0.239958]
[1741857320476,0.27073096,83353.0,83348.0,0.004]
[1741857320659,0.27073196,83353.0,83348.0,0.004]
[1741857320804,0.01879096,83353.0,83351.0,0.251943]
[1741857321010,0.01879096,83353.0,83352.0,0.011997]
[1741857322316,0.01879096,83353.0,83352.0,0.013997]
[1741857322736,0.01879096,83353.0,83352.0,0.011997]
[1741857323333,0.01879096,83353.0,83352.0,0.015997]
[1741857324051,0.01879096,83353.0,83352.0,0.019997]
[1741857325165,0.01879096,83353.0,83352.0,1.519997]
[1741857325708,0.00029351,83367.0,83366.0,0.011995]
[1741857325908,0.01151991,83367.0,83363.0,0.251908]
[1741857326530,0.01151991,83367.0,83364.0,0.239909]
[1741857327683,0.00029351,83367.0,83366.0,0.239905]
[1741857327851,0.00029351,83367.0,83366.0,0.2519]
[1741857328085,0.00029351,83367.0,83366.0,0.37184219]
[1741857328444,0.00029351,83367.0,83366.0,1.87184219]
[1741857329017,0.00029351,83367.0,83366.0,1.87484219]
[1741857329295,0.00029351,83367.0,83366.0,1.89875036]
[1741857329631,0.00029351,83367.0,83366.0,1.90175036]
[1741857335495,1e-08,83368.0,83367.0,0.011995]
[1741857335691,1e-08,83368.0,83367.0,0.13313647]
[1741857335922,1e-08,83368.0,83367.0,0.13313648]
[1741857336119,1e-08,83368.0,83367.0,1.63313648]
[1741857336325,1e-08,83368.0,83367.0,1.63193719]
[1741857336837,1e-08,83368.0,83367.0,1.63493719]
[1741857337602,1e-08,83368.0,83367.0,1.63793719]
[1741857341368,1e-08,83368.0,83367.0,1.64934294]
[1741857347013,1e-08,83368.0,83367.0,1.506]
[1741857347187,1e-08,83368.0,83367.0,1.669155]
[1741857348168,1e-08,83368.0,83367.0,1.65716]
[1741857348594,0.01878711,83368.0,83367.0,1.65716]
[1741857348837,0.01878711,83368.0,83367.0,1.506]
[1741857349170,0.03078211,83368.0,83367.0,1.506]
[1741857349370,1e-08,83368.0,83367.0,1.506]
[1741857350267,1e-08,83368.0,83367.0,0.006]
[1741857350530,0.01153983,83368.0,83367.0,0.006]
[1741857350835,0.02353483,83368.0,83367.0,0.006]
[1741857352136,0.01153983,83368.0,83367.0,0.006]
[1741857352370,0.03032723,83368.0,83367.0,0.0063386]
[1741857354066,0.01878741,83368.0,83367.0,0.0063386]
[1741857354219,0.01878741,83368.0,83367.0,0.0183336]
[1741857354637,0.01878741,83368.0,83367.0,1.5183336]
[1741857355040,1e-08,83368.0,83367.0,1.5183336]
[1741857358101,0.01878612,83368.0,83367.0,1.5183336]
[1741857358702,0.01878612,83368.0,83367.0,1.63827579]
[1741857359033,0.01878612,83368.0,83367.0,1.68387579]
[1741857359791,4.2e-07,83370.0,83367.0,1.69529092]
[1741857360000,4.2e-07,83370.0,83369.0,0.011994]
[1741857360221,4.2e-07,83370.0,83369.0,0.13193619]
[1741857360748,4.2e-07,83370.0,83369.0,1.63193619]
[1741857361524,4.2e-07,83370.0,83369.0,2.05743619]
[1741857361730,4.2e-07,83370.0,83369.0,2.07197704]
[1741857361892,4.2e-07,83370.0,83369.0,2.07697704]
[1741857362088,4.2e-07,83370.0,83369.0,2.10096826]
[1741857362779,4.2e-07,83370.0,83369.0,2.10596826]
[1741857362930,4.2e-07,83370.0,83369.0,2.10096826]
[1741857363340,4.2e-07,83370.0,83369.0,2.11105693]
[1741857363517,4.2e-07,83370.0,83369.0,2.11705693]
[1741857364982,4.2e-07,83370.0,83369.0,2.11739553]
[1741857365184,4.2e-07,83370.0,83369.0,2.11139553]
[1741857365606,4.2e-07,83370.0,83369.0,2.10539553]
[1741857365989,4.2e-07,83370.0,83369.0,2.11139553]
[1741857366548,4.2e-07,83370.0,83369.0,2.11739553]
[1741857366984,4.2e-07,83370.0,83369.0,2.14239553]
[1741857367302,4.2e-07,83370.0,83369.0,2.16739553]
[1741857367707,4.2e-07,83370.0,83369.0,2.11739553]
[1741857367925,4.2e-07,83370.0,83369.0,2.25389468]
[1741857368924,4.2e-07,83370.0,83369.0,1.79376601]
[1741857369120,4.2e-07,83370.0,83369.0,1.81930601]
[1741857370243,4.2e-07,83370.0,83369.0,0.17532982]
[1741857370449,4.2e-07,83370.0,83369.0,0.18132982]
[1741857370654,0.25188842,83370.0,83369.0,0.0123386]
[1741857370854,4.2e-07,83370.0,83369.0,0.0243326]
[1741857371202,4.2e-07,83370.0,83369.0,1.5243326]
[1741857371627,4.2e-07,83370.0,83369.0,1.5183326]
[1741857372861,4.2e-07,83370.0,83369.0,1.5123326]
[1741857373063,4.2e-07,83370.0,83369.0,1.5183326]
[1741857373280,4.2e-07,83370.0,83369.0,1.63827479]
[1741857373495,4.2e-07,83370.0,83369.0,1.63227479]
[1741857373902,4.2e-07,83370.0,83369.0,1.64327479]
[1741857374531,4.2e-07,83370.0,83369.0,1.63727479]
[1741857374764,4.2e-07,83370.0,83369.0,1.63827479]
[1741857375506,4.2e-07,83370.0,83369.0,1.68807479]
[1741857376628,4.2e-07,83370.0,83369.0,1.69407479]
[1741857379573,0.0008,83389.0,83388.0,0.251834]
[1741857379812,0.0008,83389.0,83388.0,0.52273619]
[1741857380323,0.0008,83389.0,83388.0,2.02273619]
[1741857380857,0.0008,83389.0,83388.0,2.02573619]
[1741857382605,0.0008,83389.0,83388.0,2.83387619]
[1741857383932,0.0008,83389.0,83388.0,2.85824098]
[1741857384957,0.0008,83389.0,83388.0,2.70728098]
[1741857385154,1e-06,83389.0,83388.0,2.85820098]
[1741857385361,1e-06,83389.0,83388.0,2.95464183]
[1741857385571,1e-06,83389.0,83388.0,2.98444783]
[1741857385799,1e-06,83389.0,83388.0,2.98244783]
[1741857386221,0.0001693,83400.0,83399.0,0.251801]
[1741857386222,3e-07,83400.0,83399.0,0.251801]
[1741857386398,0.00041411,83400.0,83399.0,0.37174319]
[1741857387020,1.1e-07,83400.0,83399.0,1.87174319]
[1741857387662,1.1e-07,83400.0,83399.0,1.87774319]
[1741857387883,1.1e-07,83400.0,83399.0,1.88374319]
[1741857388694,1.1e-07,83400.0,83399.0,2.03466319]
[1741857389528,1.1e-07,83400.0,83399.0,1.87774319]
[1741857389679,1.1e-07,83400.0,83399.0,2.02266319]
[1741857389877,1.1e-07,83400.0,83399.0,2.02866319]
[1741857390076,1.1e-07,83400.0,83399.0,2.03466319]
[1741857392361,1.1e-07,83400.0,83399.0,2.03462319]
[1741857392515,1.1e-07,83400.0,83399.0,0.53462319]
[1741857394753,1.1e-07,83400.0,83399.0,2.11352319]
[1741857395719,1.1e-07,83400.0,83399.0,2.10752319]
[1741857396261,1.1e-07,83400.0,83399.0,2.11352319]
[1741857396642,1.1e-07,83400.0,83399.0,2.03462319]
[1741857396841,1.1e-07,83400.0,83399.0,2.02858319]
[1741857396998,1.1e-07,83400.0,83399.0,2.78982319]
[1741857397609,1.1e-07,83400.0,83399.0,2.79582319]
[1741857397829,1.1e-07,83400.0,83399.0,2.78982319]
[1741857398034,1.1e-07,83400.0,83399.0,2.62699319]
[1741857398240,1.1e-07,83400.0,83399.0,2.78982319]
[1741857398438,1.1e-07,83400.0,83399.0,2.78382319]
[1741857398816,1.1e-07,83400.0,83399.0,2.78982319]
[1741857399016,1.1e-07,83400.0,83399.0,2.79016159]
[1741857399218,0.00016931,83400.0,83399.0,2.79016159]
[1741857399446,0.00016931,83400.0,83399.0,2.78416159]
[1741857399606,0.00016931,83400.0,83399.0,2.79016159]
[1741857399964,0.00016931,83400.0,83399.0,2.79616159]
[1741857402495,0.00016931,83400.0,83399.0,2.78416159]
[1741857402785,0.00016931,83400.0,83399.0,2.79016159]
[1741857402985,0.00016931,83400.0,83399.0,2.79616159]
[1741857403597,0.00016931,83400.0,83399.0,2.78416159]
[1741857404001,0.00016931,83400.0,83399.0,2.79612159]
[1741857405321,0.00016931,83400.0,83399.0,2.79012159]
[1741857405542,3.1e-07,83400.0,83399.0,2.79612159]
[1741857405737,3.1e-07,83400.0,83399.0,2.79012159]
[1741857405998,3.1e-07,83400.0,83399.0,2.79612159]
[1741857406227,3.1e-07,83400.0,83399.0,2.79012159]
[1741857407262,3.1e-07,83400.0,83399.0,2.79612159]
[1741857410300,0.01877828,83417.0,83416.0,0.25175]
[1741857410450,0.01890232,83417.0,83416.0,0.40251]
[1741857412923,0.01890232,83417.0,83416.0,0.40751]
[1741857413665,0.01890232,83417.0,83416.0,0.41251]
[1741857414252,0.01890232,83417.0,83416.0,0.40751]
[1741857414557,0.01890232,83417.0,83416.0,0.15476]
[1741857414693,0.27064832,83417.0,83416.0,0.15876]
[1741857415100,0.27064832,83417.0,83416.0,0.008]
[1741857415669,0.34994832,83417.0,83416.0,0.008]
[1741857416446,0.239767,83415.0,83412.0,0.15076]
[1741857417282,0.251755,83415.0,83412.0,0.15076]
[1741857417450,0.239769,83414.0,83412.0,0.15076]
[1741857417671,0.251755,83415.0,83412.0,0.15076]
[1741857417878,0.09820232,83417.0,83412.0,0.162748]
[1741857418247,0.09820232,83417.0,83414.0,0.239766]
[1741857418395,0.09820232,83417.0,83412.0,0.40452]
[1741857418563,0.09820232,83417.0,83413.0,0.251757]
[1741857419218,0.09820232,83417.0,83414.0,0.251753]
[1741857419421,0.09820232,83417.0,83416.0,0.011988]
[1741857419620,0.01890232,83417.0,83416.0,0.011988]
[1741857420942,0.01890232,83417.0,83416.0,0.015988]
[1741857421238,0.01890232,83417.0,83416.0,0.014988]
[1741857421892,0.01890232,83417.0,83416.0,0.003]
[1741857422101,0.27064832,83417.0,83416.0,0.003]
[1741857422632,0.27064832,83417.0,83416.0,0.006]
[1741857423388,0.01890232,83417.0,83416.0,0.006]
[1741857423598,0.01890232,83417.0,83416.0,0.017988]
[1741857423790,0.01907152,83417.0,83416.0,0.017988]
[1741857425149,0.01907152,83417.0,83416.0,1.517988]
[1741857425406,0.00029324,83417.0,83416.0,1.517988]
[1741857425611,0.00029324,83417.0,83416.0,1.63793019]
[1741857425784,0.00029324,83417.0,83416.0,1.63503019]
[1741857426009,0.00029324,83417.0,83416.0,1.78571019]
[1741857426413,0.00029324,83417.0,83416.0,1.78561019]
[1741857426620,0.00029324,83417.0,83416.0,1.78861019]
[1741857426799,0.00029324,83417.0,83416.0,1.79361019]
[1741857428797,0.00029324,83417.0,83416.0,1.91343]
[1741857430293,0.00029324,83417.0,83416.0,2.03337219]
[1741857432808,2e-07,83435.0,83432.0,0.239716]
[1741857433011,2e-07,83435.0,83434.0,0.251695]
[1741857433340,3.3e-07,83455.0,83452.0,0.0808]
[1741857433610,3.3e-07,83455.0,83454.0,0.011982]
[1741857433844,0.00012432,83455.0,83454.0,0.13192419]
[1741857434822,0.00012432,83455.0,83454.0,1.61994219]
[1741857435018,0.00012432,83455.0,83454.0,1.5]
[1741857435223,0.00012432,83455.0,83454.0,1.52361895]
[1741857435438,0.01210632,83455.0,83454.0,1.67421895]
[1741857435598,0.01210632,83455.0,83454.0,0.1506]
[1741857435838,0.01210632,83455.0,83454.0,0.1536]
[1741857436048,0.01210632,83455.0,83454.0,0.1566]
[1741857436748,0.01210632,83455.0,83454.0,0.1506]
[1741857436949,0.01210632,83455.0,83453.0,0.76112]
[1741857436950,0.251634,83454.0,83453.0,0.76112]
[1741857437157,0.011983,83445.0,83442.0,0.1506]
[1741857437351,0.251662,83445.0,83442.0,0.1506]
[1741857437552,0.251668,83443.0,83442.0,0.1506]
[1741857437757,0.251698,83433.0,83432.0,0.9116]
[1741857438161,0.251698,83433.0,83432.0,0.761]
[1741857438562,0.011987,83422.0,83416.0,0.10838529]
[1741857438794,0.011986,83428.0,83421.0,0.011987]
[1741857438987,0.251714,83428.0,83421.0,0.011987]
[1741857439200,0.239728,83428.0,83423.0,0.011987]
[1741857439762,0.251714,83428.0,83423.0,0.011987]
[1741857440478,0.251714,83428.0,83422.0,0.239742]
[1741857440862,0.25849493,83430.0,83422.0,0.239742]
[1741857441066,0.27048093,83430.0,83423.0,0.004]
[1741857441276,0.239739,83425.0,83423.0,0.004]
[1741857441704,0.011986,83424.0,83423.0,0.004]
[1741857441917,0.011986,83424.0,83423.0,0.008]
[1741857442358,0.011987,83422.0,83421.0,0.02400212]
[1741857442547,0.011987,83422.0,83411.0,0.76096]
[1741857442548,0.251754,83415.0,83411.0,0.76096]
[1741857442977,0.239771,83413.0,83411.0,0.76096]
[1741857443543,0.011988,83412.0,83411.0,0.76096]
[1741857443905,0.011988,83412.0,83411.0,0.76596]
[1741857444110,0.011988,83412.0,83411.0,0.005]
[1741857445876,0.011988,83410.0,83409.0,0.0003384]
[1741857447183,0.03076631,83410.0,83409.0,0.0003384]
[1741857447387,0.03076631,83410.0,83409.0,0.0063384]
[1741857447388,0.40696631,83410.0,83409.0,0.0063384]
[1741857449161,0.40696631,83410.0,83409.0,0.0083384]
[1741857449335,0.40696631,83410.0,83409.0,0.0023384]
[1741857449661,0.40696631,83410.0,83409.0,0.0043384]
[1741857453543,0.01877831,83410.0,83409.0,0.2561094]
[1741857453681,0.3,83420.0,83415.0,0.25175]
[1741857453874,0.011987,83419.0,83409.0,0.0163274]
[1741857454103,0.239741,83424.0,83409.0,0.0163274]
[1741857454104,0.0876025,83433.0,83423.0,0.011987]
[1741857454310,0.0876025,83433.0,83431.0,0.251701]
[1741857454311,0.0116025,83433.0,83431.0,0.251701]
[1741857454681,0.3,83439.0,83433.0,0.251697]
[1741857454884,0.251683,83438.0,83428.0,0.251711]
[1741857455087,0.011986,83429.0,83424.0,0.011986]
[1741857455432,0.239718,83432.0,83426.0,0.239731]
[1741857455688,0.239723,83430.0,83425.0,0.25172]
[1741857455855,0.251709,83430.0,83425.0,0.25072]
[1741857456058,0.23971,83434.0,83428.0,0.239727]
[1741857456288,0.251701,83433.0,83428.0,0.011986]
[1741857456465,0.011986,83430.0,83424.0,0.251724]
[1741857456677,0.239736,83425.0,83424.0,0.004]
[1741857456911,0.251722,83425.0,83424.0,0.002]
[1741857457079,0.239742,83423.0,83417.0,0.251743]
[1741857457288,0.239742,83423.0,83418.0,0.011987]
[1741857457491,0.239742,83423.0,83418.0,0.251741]
[1741857457693,0.239777,83411.0,83402.0,0.2398]
[1741857457925,0.239777,83411.0,83410.0,0.15052]
[1741857458076,0.251765,83411.0,83410.0,0.15052]
[1741857458272,0.239771,83413.0,83410.0,0.15052]
[1741857458483,0.251752,83416.0,83410.0,0.402285]
[1741857458822,0.251755,83415.0,83410.0,0.15052]
[1741857459033,0.251758,83414.0,83410.0,0.15052]
[1741857459187,0.239776,83412.0,83410.0,0.15052]
[1741857459382,0.239776,83412.0,83410.0,0.15552]
[1741857459586,0.011988,83413.0,83410.0,0.15952]
[1741857459903,0.251756,83414.0,83410.0,0.15952]
[1741857459904,0.251756,83414.0,83410.0,0.15052]
[1741857460083,0.251756,83414.0,83410.0,0.15452]
[1741857460417,0.011988,83415.0,83410.0,0.410285]
[1741857460938,0.251754,83415.0,83410.0,0.410285]
[1741857461290,0.011988,83416.0,83411.0,0.251762]
[1741857461492,0.251745,83418.0,83412.0,0.251759]
[1741857461837,0.25175,83416.0,83410.0,0.410285]
[1741857462033,0.25175,83416.0,83411.0,0.239774]
[1741857462341,0.239766,83415.0,83410.0,0.162508]
[1741857462482,0.239766,83415.0,83411.0,0.006]
[1741857462681,0.239766,83415.0,83411.0,0.003]
[1741857462888,0.25175,83416.0,83412.0,0.239773]
[1741857463085,0.011987,83417.0,83413.0,0.239768]
[1741857463302,0.011987,83417.0,83412.0,0.239773]
[1741857463956,0.251748,83417.0,83412.0,0.251761]
[1741857464184,0.251752,83416.0,83411.0,0.011988]
[1741857464320,0.239779,83410.0,83409.0,0.0003384]
[1741857464532,0.251767,83410.0,83409.0,0.0003384]
[1741857465638,0.311988,83415.0,83409.0,0.0053384]
[1741857465845,0.3,83415.0,83411.0,0.239774]
[1741857466394,0.3,83415.0,83410.0,0.011988]
[1741857466395,0.3,83415.0,83409.0,0.2451184]
[1741857466548,0.011988,83414.0,83409.0,0.0003384]
[1741857466747,0.251757,83414.0,83409.0,0.0023384]
[1741857466977,0.251766,83411.0,83409.0,0.0023384]
[1741857468193,0.251766,83411.0,83409.0,0.0003384]
[1741857468399,0.011988,83411.0,83409.0,0.0003384]
[1741857468743,0.01877678,83411.0,83409.0,0.2411174]
[1741857468926,0.01877678,83411.0,83409.0,0.2531064]
[1741857469118,0.01877678,83411.0,83409.0,0.2521064]
[1741857469259,0.01877678,83411.0,83409.0,0.0023384]
[1741857469468,0.01877678,83411.0,83409.0,0.0043384]
[1741857469666,0.239779,83410.0,83409.0,0.0043384]
[1741857469883,0.251767,83410.0,83409.0,0.0043384]
[1741857471115,0.251767,83410.0,83409.0,0.0023384]
[1741857471650,0.251767,83410.0,83409.0,0.0043384]
[1741857472109,0.251767,83410.0,83409.0,0.0023384]
[1741857472283,0.01877678,83411.0,83409.0,0.0043384]
[1741857472482,0.27054278,83411.0,83409.0,0.0043384]
[1741857472684,0.03076478,83411.0,83409.0,0.0043384]
[1741857472850,0.27054278,83411.0,83409.0,0.0043384]
[1741857473529,0.27054278,83411.0,83409.0,0.0023384]
[1741857474337,0.011988,83410.0,83409.0,0.0003384]
[1741857474718,0.011988,83410.0,83409.0,0.0023384]
[1741857474921,0.01877678,83411.0,83409.0,0.0043384]
[1741857475324,0.01877678,83411.0,83409.0,0.2541074]
[1741857475535,0.01877678,83411.0,83409.0,0.0003384]
[1741857475698,0.01877678,83411.0,83409.0,0.0043384]
[1741857475897,0.27054278,83411.0,83409.0,0.0043384]
[1741857476123,0.27054278,83411.0,83409.0,0.0003384]
[1741857476414,0.27054278,83411.0,83409.0,0.0023384]
[1741857476415,0.01877678,83411.0,83409.0,0.0023384]
[1741857476590,0.01877678,83411.0,83409.0,0.0043384]
[1741857477018,0.27054078,83411.0,83409.0,0.0043384]
[1741857477360,0.01877678,83411.0,83409.0,0.0043384]
[1741857477980,0.25855478,83411.0,83409.0,0.0043384]
[1741857478188,0.01877678,83411.0,83409.0,0.0043384]
[1741857479262,0.25855478,83411.0,83409.0,0.0043384]
[1741857479435,0.011988,83410.0,83409.0,0.0043384]
[1741857479644,0.01877678,83411.0,83409.0,0.0043384]
[1741857479991,0.01877678,83411.0,83409.0,0.0163274]
[1741857480272,0.01877678,83411.0,83410.0,0.011988]
[1741857480492,0.3,83419.0,83414.0,0.011988]
[1741857480833,0.23976,83417.0,83411.0,0.251764]
[1741857481036,0.011987,83417.0,83411.0,0.011988]
[1741857481241,0.239764,83416.0,83411.0,0.011988]
[1741857481444,0.3,83419.0,83413.0,0.011988]
[1741857481651,0.3,83427.0,83422.0,0.239742]
[1741857481816,0.311987,83422.0,83417.0,0.011987]
[1741857482156,0.0001694,83425.0,83418.0,0.011987]
[1741857482370,4e-07,83425.0,83424.0,0.299825]
[1741857482542,4e-07,83425.0,83424.0,0.50066719]
[1741857484164,4e-07,83425.0,83424.0,0.52486891]
[1741857484872,4e-07,83425.0,83424.0,2.02486891]
[1741857485058,4e-07,83425.0,83424.0,2.02886891]
[1741857485427,4e-07,83425.0,83424.0,2.02486891]
[1741857485723,4e-07,83425.0,83424.0,1.77814391]
[1741857485976,4e-07,83425.0,83424.0,1.79012991]
[1741857486378,4e-07,83425.0,83424.0,1.79512991]
[1741857487033,4e-07,83425.0,83424.0,1.66320172]
[1741857487242,4e-07,83425.0,83424.0,0.23270172]
[1741857487443,4e-07,83425.0,83424.0,0.24468772]
[1741857489020,4e-07,83425.0,83424.0,0.36462991]
[1741857492241,4e-07,83425.0,83424.0,0.36458991]
[1741857494090,4e-07,83425.0,83424.0,0.24464772]
[1741857494834,4e-07,83425.0,83424.0,1.74464772]
[1741857497161,4e-07,83425.0,83424.0,1.66036]
[1741857497502,4e-07,83425.0,83424.0,1.51]
[1741857498081,0.0119864,83425.0,83424.0,1.51]
[1741857498441,0.0119864,83425.0,83424.0,0.01]
[1741857498642,4e-07,83425.0,83424.0,0.005]
[1741857498856,4e-07,83425.0,83424.0,0.020986]
[1741857498984,4e-07,83425.0,83424.0,0.011986]
[1741857499198,4e-07,83425.0,83423.0,0.23974]
[1741857499421,4e-07,83425.0,83424.0,0.003]
[1741857500133,0.0119864,83425.0,83424.0,0.007]
[1741857500891,0.0119864,83425.0,83424.0,0.004]
[1741857501336,0.03076102,83425.0,83424.0,0.004]
[1741857501536,0.251725,83424.0,83423.0,0.003]
[1741857502143,0.251752,83416.0,83411.0,0.251763]
[1741857502577,0.251745,83418.0,83412.0,0.251759]
[1741857502772,0.23976,83417.0,83412.0,0.251759]
[1741857502979,0.01877594,83415.0,83412.0,0.251759]
[1741857503453,0.01877594,83415.0,83412.0,0.011988]
[1741857503672,0.25854294,83415.0,83411.0,0.002]
[1741857503947,0.011988,83414.0,83411.0,0.002]
[1741857504281,0.02379137,83414.0,83411.0,0.002]
[1741857504725,0.02379137,83414.0,83411.0,0.0023388]
[1741857504881,0.02379137,83414.0,83411.0,0.0053388]
[1741857505079,0.02379137,83414.0,83411.0,0.0023388]
[1741857505282,0.01180337,83414.0,83411.0,0.0023388]
[1741857505490,0.01877594,83415.0,83412.0,0.251758]
[1741857505728,0.01877594,83415.0,83413.0,1.739768]
[1741857506151,0.01877594,83415.0,83414.0,0.011988]
[1741857508178,0.01877594,83415.0,83414.0,0.015988]
[1741857508494,0.01877594,83415.0,83414.0,0.019988]
[1741857509332,0.01877594,83415.0,83414.0,0.02118677]
[1741857509535,4e-07,83425.0,83424.0,0.251725]
[1741857510820,4e-07,83425.0,83424.0,0.253725]
[1741857511438,4e-07,83425.0,83424.0,0.255725]
[1741857512498,0.01877472,83425.0,83424.0,0.255725]
[1741857513018,4e-07,83425.0,83424.0,0.303225]
[1741857514451,4e-07,83425.0,83424.0,0.42316719]
[1741857514665,4e-07,83425.0,83424.0,0.44663614]
[1741857514863,4e-07,83425.0,83424.0,1.94663614]
[1741857516634,4e-07,83425.0,83424.0,1.94463614]
[1741857517006,4e-07,83425.0,83424.0,1.94863614]
[1741857517373,4e-07,83425.0,83424.0,1.94663614]
[1741857518002,4e-07,83425.0,83424.0,1.95063614]
[1741857518265,4e-07,83425.0,83424.0,1.95097494]
[1741857522783,4e-07,83425.0,83424.0,1.94297494]
[1741857523203,4e-07,83425.0,83424.0,1.95097494]
[1741857523607,4e-07,83425.0,83424.0,1.94697494]
[1741857524169,4e-07,83425.0,83424.0,1.95197494]
[1741857524490,4e-07,83425.0,83424.0,1.94797494]
[1741857524940,4e-07,83425.0,83424.0,2.10317494]
[1741857536350,4e-07,83425.0,83424.0,1.95297494]
[1741857536549,4e-07,83425.0,83424.0,1.98315275]
[1741857537283,4e-07,83425.0,83424.0,2.10309494]
[1741857537485,0.01877313,83432.0,83431.0,0.251704]
[1741857537486,1.3e-07,83432.0,83431.0,0.251704]
[1741857537687,0.01160529,83461.0,83454.0,0.251634]
[1741857537916,8e-05,83472.0,83454.0,0.251634]
[1741857537917,0.00029372,83455.0,83454.0,0.251634]
[1741857538295,0.00029372,83455.0,83454.0,1.5]
[1741857538696,0.00029372,83455.0,83453.0,0.15012]
[1741857539128,0.00029372,83455.0,83454.0,1.5]
[1741857540240,0.00029372,83455.0,83454.0,1.504]
[1741857540445,0.01227572,83455.0,83454.0,1.504]
[1741857540654,0.01227572,83455.0,83454.0,0.004]
[1741857540830,0.03104354,83455.0,83454.0,0.004]
[1741857541626,0.03104354,83455.0,83434.0,0.0464]
[1741857541627,0.011985,83437.0,83434.0,0.0464]
[1741857541795,0.011984,83439.0,83435.0,0.15008]
[1741857541990,0.011984,83441.0,83435.0,0.15008]
[1741857542197,0.011985,83437.0,83435.0,0.15008]
[1741857542406,0.011985,83436.0,83435.0,0.15008]
[1741857542765,0.011986,83429.0,83424.0,0.0003388]
[1741857542973,0.011985,83432.0,83424.0,0.0003388]
[1741857543203,0.011986,83430.0,83424.0,0.0003388]
[1741857543399,0.011986,83428.0,83424.0,0.0003388]
[1741857543619,0.251721,83426.0,83424.0,0.0003388]
[1741857543775,0.251709,83430.0,83424.0,0.2400768]
[1741857543990,0.25178824,83430.0,83424.0,0.2400768]
[1741857544193,0.25178824,83430.0,83424.0,0.2400758]
[1741857544397,0.011986,83429.0,83424.0,0.2520618]
[1741857544614,0.239727,83428.0,83424.0,0.0003388]
[1741857544816,0.239736,83425.0,83424.0,0.0053388]
[1741857545049,0.251722,83425.0,83424.0,0.0003388]
[1741857545403,0.251722,83425.0,83424.0,0.0053388]
[1741857545993,0.251722,83425.0,83424.0,0.0103388]
[1741857546173,0.251722,83425.0,83424.0,0.0053388]
[1741857546481,0.251722,83425.0,83424.0,0.0113388]
[1741857546640,0.27049682,83425.0,83424.0,0.0113388]
[1741857547511,0.27049682,83425.0,83424.0,0.0063388]
[1741857547638,0.27049682,83425.0,83424.0,0.0113388]
[1741857547855,0.01877482,83425.0,83424.0,0.0003388]
[1741857548046,0.01877482,83425.0,83424.0,0.2440778]
[1741857548251,0.01877482,83425.0,83424.0,0.0083388]
[1741857550370,0.03076082,83425.0,83424.0,0.0083388]
[1741857550953,0.01877482,83425.0,83424.0,0.0083388]
[1741857551413,0.01877482,83425.0,83424.0,0.0203248]
[1741857551836,7.924e-05,83430.0,83428.0,0.011986]
[1741857552197,7.924e-05,83430.0,83429.0,0.239724]
[1741857552403,7.924e-05,83430.0,83428.0,0.011986]
[1741857552720,0.239732,83427.0,83424.0,0.0043388]
[1741857552972,0.011986,83425.0,83424.0,0.0043388]
[1741857553318,0.251718,83427.0,83424.0,0.0003388]
[1741857553502,7.924e-05,83430.0,83428.0,0.251713]
[1741857553749,7.924e-05,83430.0,83429.0,0.011986]
[1741857554002,0.23980324,83430.0,83425.0,0.251722]
[1741857554203,0.23980324,83430.0,83428.0,0.003]
[1741857554204,0.25178924,83430.0,83428.0,0.003]
[1741857554451,0.011986,83429.0,83428.0,0.003]
[1741857554821,0.251718,83427.0,83424.0,0.0003388]
[1741857555021,0.011986,83429.0,83424.0,0.0003388]